Cogmind - Beta 14 @@@ ROGUE MODE // 2024.12.24 @ 17:58:45 Player: Golinth Result: Self-destructed Performance ------------- Evolutions (2) 1000 Regions Visited (4) 800 Robots Destroyed (49) 245 Value Destroyed (1169) 1169 Prototype IDs (1) 20 Alien Tech Used (0) 0 Bonus (-39) -39 TOTAL SCORE: 3195 Bonus ------- Friendly Fire -39 Cogmind --------- Core Integrity 206/550 Matter 300/300 Energy 120/160 System Corruption 0% Temperature Cool (54) Movement Treading (320) Ox2 Location -8/Materials Parts ------- > --- POWER (1) -------- Light Nuclear Core > --- PROPULSION (4) --- Light Treads > --- UTILITY (4) ------ High-capacity Storage Unit Visual Processing Unit Targeting Computer Improved Light Armor Plating > --- WEAPON (2) ------- (None) > --- INVENTORY (20) --- Light Nuclear Core Improved Sensor Array Light Armor Plating Hardened Medium Armor Plating Tractor Beam Heavy Assault Rifle Peak State ------------ > --- POWER ------------ Light Nuclear Core > --- PROPULSION ------- Aluminum Leg Aerolev Unit Flight Unit Flight Unit > --- UTILITY ---------- Small Storage Unit Visual Processing Unit Targeting Computer Improved Light Armor Plating > --- WEAPON ----------- EM Pulse Cannon Datajack > --- INVENTORY -------- Light Nuclear Core High-capacity Storage Unit Improved Sensor Array Hardened Medium Armor Plating Tractor Beam Rocket Launcher [Rating: 22] Favorites ----------- Power Ion Engine Engine Ion Engine Power Core Light Nuclear Core Propulsion Aluminum Leg Treads Light Treads Leg Aluminum Leg Hover Unit Aerolev Unit Flight Unit Flight Unit Utility Small Storage Unit Device Seismic Detector Storage Small Storage Unit Processor Visual Processing Unit Protection Improved Light Armor Plating Weapon Light Assault Rifle Energy Cannon EM Pulse Cannon Ballistic Gun Light Assault Rifle Launcher Rocket Launcher Special Melee Weapon Datajack Build | -11 -10 -9 -9 -8 ------- Run | Yrd Mat Mat Min Mat Slots Evolved 4 | . . 2 . 2 Power . | . . . . . Propulsion 2 | . . 1 . 1 Utility 2 | . . 1 . 1 Weapon . | . . . . . Parts Attached 51 | 7 2 15 3 24 Power 6 | 1 . 2 1 2 Engine 5 | 1 . 2 1 1 Core 1 | . . . . 1 Reactor . | . . . . . Propulsion 18 | 2 . 6 . 10 Treads 1 | . . . . 1 Leg 12 | 2 . 6 . 4 Wheel . | . . . . . Hover 3 | . . . . 3 Flight 2 | . . . . 2 Utility 15 | 2 1 4 . 8 Device 3 | 1 1 . . 1 Storage 6 | 1 . 2 . 3 Processor 3 | . . 2 . 1 Hackware . | . . . . . Protection 3 | . . . . 3 Artifact . | . . . . . Weapon 12 | 2 1 3 2 4 Energy Gun . | . . . . . Energy Cannon 1 | . . . . 1 Ballistic Gun 9 | 2 1 2 2 2 Ballistic Cannon . | . . . . . Launcher 1 | . . 1 . . Special Weapon . | . . . . . Impact Weapon . | . . . . . Slashing Weapon . | . . . . . Piercing Weapon . | . . . . . Special Melee Weapon 1 | . . . . 1 Unidentified Prototypes 1 | . . . . 1 Parts Lost 22 | . . 3 2 17 Power 4 | . . 1 1 2 Propulsion 9 | . . 1 . 8 Utility 2 | . . . . 2 Weapon 7 | . . 1 1 5 Highest Loss Streak 5 | . . 3 2 5 To Critical Strikes . | . . . . . Average Slot Usage (%) 87 | . 100 98 99 73 Engine 6 | . 14 10 10 1 Core 1 | . . . . 3 Leg 22 | . 28 33 33 11 Hover 1 | . . . . 3 Flight 1 | . . . . 2 Device 3 | . 14 . . 3 Storage 10 | . 14 11 11 8 Processor 16 | . . 21 22 18 Protection 2 | . . . . 5 Ballistic Gun 15 | . 28 20 11 9 Launcher 1 | . . 1 10 . Peak Build Rating 22 | 7 7 11 11 22 Average Rating 11 | 4 7 10 10 15 On Entrance 7 | . 7 7 11 11 Naked Turns . | . . . . . Heaviest Build 55 | 13 14 15 15 55 Greatest Support 40 | 20 20 30 30 40 Greatest Overweight (x) 5 | . . . . 5 Average Overweight (x) . | . . . . . Largest Inventory Capacity 20 | 8 8 20 8 20 Average Capacity 8 | 6 8 8 8 10 Most Carried 8 | 5 8 8 8 8 Average Carried 6 | 2 5 7 7 6 Final Capacity 20 | 8 8 8 8 20 Final Carried 8 | 2 8 8 6 6 Class Distribution -------------------- 82% | Mutant 17% | Scavenger-Mutant Dominant Class ---------------- Mutant | -10/Materials Mutant | -9/Materials Mutant | -9/Mines Mutant | -8/Materials Resources | -11 -10 -9 -9 -8 ----------- Run | Yrd Mat Mat Min Mat Matter Collected 1255 | 278 46 317 97 517 Remotely 56 | 10 46 . . . Salvage Created 1631 | 75 129 590 123 714 Parts 107 | 3 11 54 4 35 Haulers Intercepted 1 | . . 1 . . Recyclers Shooed 3 | . 1 . . 2 Parts Field Recycled . | . . . . . Retrieved Matter . | . . . . . Parts Self-Destructed . | . . . . . Prevented . | . . . . . Kills | -11 -10 -9 -9 -8 ------- Run | Yrd Mat Mat Min Mat Combat Hostiles Destroyed 34 | . 2 14 8 10 Guns 25 | . 2 12 3 8 Cannons 1 | . . . . 1 AOE 7 | . . 2 5 . Classes Destroyed 10 | 1 3 6 . . Worker 5 | . 2 . . 3 Tunneler 1 | . . 1 . . Hauler 1 | . . 1 . . Recycler 3 | 1 . 1 . 1 Mechanic 1 | . . 1 . . Operator 1 | . 1 . . . Watcher 3 | . . 2 . 1 Swarmer 12 | . . 6 6 . Grunt 16 | . 2 5 2 7 Sentry 6 | . . 3 . 3 Best Kill Streak 6 | 1 3 6 6 3 Combat Bots Only 4 | . 2 4 4 1 Max Kills in Single Turn 4 | 1 1 2 4 1 Gunslinging . | . . . . . Exploded 4 | . . 1 4 . Melee . | . . . . . Uniques/NPCs Destroyed . | . . . . . Combat | -11 -10 -9 -9 -8 -------- Run | Yrd Mat Mat Min Mat Hostile Shots Fired 275 | . 21 104 24 126 Missed 84 | . 9 32 7 36 Damage Taken 2689 | . 153 793 259 1484 Core 585 | . 10 203 28 344 Absorbed by Shields . | . . . . . Regen/Repaired (Parts) 64 | . . 64 . . Core Remaining (%) 79 | 100 96 . 42 . Volleys Fired 199 | 5 9 53 17 115 Largest 2 | 2 2 2 2 2 Hottest 63 | 40 40 53 53 63 Shots Fired 300 | 10 18 104 22 146 Gun 277 | 10 18 100 20 129 Cannon 17 | . . . . 17 Launcher 6 | . . 4 2 . Special . | . . . . . Kinetic 277 | 10 18 100 20 129 Thermal . | . . . . . Explosive 6 | . . 4 2 . Electromagnetic 17 | . . . . 17 Robot Hit Streak 11 | 6 6 11 6 11 Robot Miss Streak 4 | 1 2 4 3 3 Penetration Max . | . . . . . Secondary Targets 5 | . . 4 . 1 Max Gunslinging Chain 1 | . . 1 . 1 Shots Hit Robots 196 | 7 11 63 12 103 Core Hits 95 | 3 6 36 11 39 Critical Kills . | . . . . . Critical Parts Destroyed 1 | . . . . 1 Critical Strikes 1 | . . . . 1 Destroy 1 | . . . . 1 Melee Attacks . | . . . . . Impact . | . . . . . Slashing . | . . . . . Piercing . | . . . . . Sneak Attacks . | . . . . . Combat Hostiles . | . . . . . Follow-up Attacks . | . . . . . Damage Inflicted 2964 | 49 116 878 460 1461 Guns 2047 | 49 116 614 105 1163 Cannons 247 | . . . . 247 Explosions 649 | . . 262 355 32 Melee . | . . . . . Ramming 21 | . . 2 . 19 Kinetic 2047 | 49 116 614 105 1163 Thermal 32 | . . . . 32 Explosive 617 | . . 262 355 . Electromagnetic 247 | . . . . 247 Impact . | . . . . . Slashing . | . . . . . Piercing . | . . . . . Highest Corruption . | . . . . . Average Corruption . | . . . . . Corruption Purged . | . . . . . Corruption Blocked . | . . . . . Overload Shots . | . . . . . Overflow Damage 93 | . . . 93 . Projectiles . | . . . . . Explosions 93 | . . . 93 . Melee . | . . . . . Knockbacks . | . . . . . Impact . | . . . . . Kinetic . | . . . . . Secondary . | . . . . . Self-Inflicted Damage 130 | . . 50 77 3 Shots 4 | . . 2 2 . Rammed 1 | . . . . 1 Targets Rammed 5 | 1 . 1 . 3 Kicked 4 | 1 . 1 . 2 Crushed . | . . . . . Highest Temperature 117 | . 6 19 24 117 Average Temperature 20 | . 6 4 7 25 Received Heat Transfer 1140 | . 72 216 78 774 Siege Activations . | . . . . . Robots Corrupted 1 | . . . . 1 Combat Hostiles 1 | . . . . 1 Parts Fried 1 | . . . . 1 Impact Corruptions . | . . . . . Robots Melted . | . . . . . Combat Hostiles . | . . . . . Parts Melted . | . . . . . Heat Transferred 50 | . . . . 50 Parts Sabotaged . | . . . . . Parts Stolen . | . . . . . Parts Stripped . | . . . . . Power Chain Reactions 1 | . . . . 1 Alert | -11 -10 -9 -9 -8 ------- Run | Yrd Mat Mat Min Mat Peak Influence 426 | 5 68 426 366 187 Initial 165 | . 3 . 165 142 Average 108 | 3 21 132 306 90 Maximum Alert Level 2 | . . 2 1 . Low Security (%) 83 | 100 100 72 . 100 Level 1 14 | . . 18 100 . Level 2 2 | . . 8 . . Level 3 . | . . . . . Level 4 . | . . . . . Level 5 . | . . . . . High Security . | . . . . . Max Security . | . . . . . Squads Dispatched 3 | . 1 2 . . Investigation . | . . . . . Extermination . | . . . . . Reinforcement 3 | . 1 2 . . Assault . | . . . . . Garrison . | . . . . . Intercept . | . . . . . Searches Triggered . | . . . . . Construction Impeded . | . . . . . Haulers Reinforced . | . . . . . Active Scanning Responses . | . . . . . Cargo Convoy Interrupts . | . . . . . Stealth | -11 -10 -9 -9 -8 --------- Run | Yrd Mat Mat Min Mat Distress Signals 6 | . . 3 1 2 Communications Jammed . | . . . . . Distress Signals . | . . . . . Times Spotted 60 | . 4 25 6 25 Peak Tracking Total 7 | . 3 7 4 6 Tactical Retreats 4 | . . 2 . 2 Traps | -11 -10 -9 -9 -8 ------- Run | Yrd Mat Mat Min Mat Traps Triggered 2 | . 1 . . 1 Indirectly . | . . . . . Trap Hack Attempts . | . . . . . Triggered . | . . . . . Disarmed . | . . . . . Reprogrammed . | . . . . . Reused . | . . . . . Traps Extracted . | . . . . . Installed . | . . . . . Triggered . | . . . . . Machines | -11 -10 -9 -9 -8 ---------- Run | Yrd Mat Mat Min Mat Machines Disabled 1 | . . . 1 . Max in Single Turn 1 | . . . 1 . Machines Repaired . | . . . . . Machines Dismantled . | . . . . . Machines Sabotaged . | . . . . . Overloaded Fab Kills . | . . . . . Hacking | -11 -10 -9 -9 -8 --------- Run | Yrd Mat Mat Min Mat Machines Accessed 2 | . . 1 . 1 Terminals . | . . . . . Fabricators . | . . . . . Repair Stations 1 | . . 1 . . Recycling Units 1 | . . . . 1 Scanalyzers . | . . . . . Garrison Access . | . . . . . Total Hacks 4 | . . 3 . 1 Successful 3 | . . 2 . 1 Failed 1 | . . 1 . . Catastrophic . | . . . . . Database Lockouts . | . . . . . Manual . | . . . . . Terminals . | . . . . . Fabricators . | . . . . . Repair Stations 3 | . . 3 . . Recycling Units 1 | . . . . 1 Scanalyzers . | . . . . . Garrison Access . | . . . . . Terminal Hacks . | . . . . . Fabricator Hacks . | . . . . . Repair Station Hacks 2 | . . 2 . . Scan Component 1 | . . 1 . . Repair 1 | . . 1 . . Recycling Unit Hacks 1 | . . . . 1 Report Inventory 1 | . . . . 1 Scanalyzer . | . . . . . Garrison Access Hacks . | . . . . . Unauthorized Hacks . | . . . . . Terminals . | . . . . . Fabricators . | . . . . . Repair Stations . | . . . . . Recycling Units . | . . . . . Scanalyzers . | . . . . . Garrison Access . | . . . . . Data Cores Recovered . | . . . . . Used . | . . . . . Hacking Detections . | . . . . . Full Trace Events . | . . . . . Feedback Events . | . . . . . Feedback Blocked . | . . . . . Robot Schematics Acquired . | . . . . . Robots Built . | . . . . . Authchips . | . . . . . Time . | . . . . . Total Robot Build Rating . | . . . . . Part Schematics Acquired . | . . . . . Parts Built . | . . . . . Authchips . | . . . . . Time . | . . . . . Total Part Build Rating . | . . . . . Parts Repaired 1 | . . 1 . . Time 26 | . . 26 . . Parts Recycled . | . . . . . Recycled Matter . | . . . . . Retrieved Matter . | . . . . . Retrieved Components . | . . . . . Parts Scanalyzed . | . . . . . Part Schematics Acquired . | . . . . . Parts Damaged . | . . . . . Bothacking | -11 -10 -9 -9 -8 ------------ Run | Yrd Mat Mat Min Mat Used RIF Installer . | . . . . . Robots Hacked . | . . . . . Non-combat . | . . . . . Combat . | . . . . . Robot Hacks Applied . | . . . . . Relay Couplers Released . | . . . . . Fabnet Peak Effective % . | . . . . . Robots Rewired . | . . . . . Allies Hacked . | . . . . . Hacks Repelled . | . . . . . Allies | -11 -10 -9 -9 -8 -------- Run | Yrd Mat Mat Min Mat Total Allies . | . . . . . Largest Group . | . . . . . Highest-Rated Group . | . . . . . Highest-Rated Ally . | . . . . . Total Orders . | . . . . . Ally Attacks . | . . . . . Total Damage . | . . . . . Kills . | . . . . . Allies Corrupted . | . . . . . Allies Melted . | . . . . . Intel | -11 -10 -9 -9 -8 ------- Run | Yrd Mat Mat Min Mat Robot Analysis Total . | . . . . . Derelict Logs Recovered 1 | . . . 1 . Drone Launches . | . . . . . Drone Recoveries . | . . . . . Exploration | -11 -10 -9 -9 -8 ------------- Run | Yrd Mat Mat Min Mat Turns Passed 2746 | 105 440 718 264 1219 Spaces Moved 1394 | 82 248 327 187 550 Core 56 | 32 . . . 24 Treads 58 | . . . . 58 Legs 1093 | 50 248 327 187 281 Wheels . | . . . . . Hover 104 | . . . . 104 Flight 83 | . . . . 83 Fastest Speed 50 | 50 120 120 120 50 Average Speed 133 | 92 120 120 120 159 Slowest Speed 320 | 120 120 120 120 320 Overloaded Moves . | . . . . . Propulsion Burnouts . | . . . . . Robots Hopped . | . . . . . Cave-ins Triggered . | . . . . . Exploration Rate (%) 28 | 4 31 27 50 30 Regions Visited 4 Branch Regions 1 Pre-discovered Areas 1 | . . . 1 . Known Exits Taken . | . . . . . Unknown Exits Taken 4 | 1 1 1 1 . Scrap Searched . | . . . . . Spaces Dug . | . . . . . Terrain Destroyed 55 | . . 36 17 2 Melee . | . . . . . Projectile . | . . . . . AOE 55 | . . 36 17 2 Terrain Rammed . | . . . . . Walls Destroyed . | . . . . . Machines Disabled . | . . . . . Actions | -11 -10 -9 -9 -8 --------- Run | Yrd Mat Mat Min Mat Total 2026 | 103 374 568 208 773 Wait 295 | . 106 141 2 46 Move 1390 | 81 247 326 186 550 Hop . | . . . . . Pick Up 61 | 9 8 19 . 25 Fast Attach . | . . . . . Attach 36 | 7 . 7 2 20 Detach . | . . . . . Swap 15 | . 2 8 1 4 Drop 22 | . 2 13 . 7 Fire 199 | 5 9 53 17 115 Melee . | . . . . . Ram 1 | . . . . 1 Kick 4 | 1 . 1 . 2 Crush . | . . . . . Escape Stasis . | . . . . . Rewire 3 | . . . . 3 Trap . | . . . . . Miscellaneous . | . . . . . Route ------- -11/Scrapyard -10/Materials -9/Materials -9/Mines -8/Materials History --------- Turn | Location | Event 4 | -11/Scrapyard | Discovered new exit (range 14) 106 | -11/Scrapyard | Entered Materials 314 | -10/Materials | Build established: Mutant 512 | -10/Materials | Discovered new exit (range 10) 546 | -10/Materials | Entered another Materials area 546 | -9/Materials | Evolved 2 slots: Propulsion x1, Utility x1 727 | -9/Materials | Repaired Assault Rifle 1181 | -9/Materials | Discovered new exit (range 16) 1193 | -9/Materials | Core integrity fell below 50% 1221 | -9/Materials | Lost 3 parts (1p1n1w) 1264 | -9/Materials | Entered Mines 1304 | -9/Mines | Met a Derelict bent on vengeance 1367 | -9/Mines | Assembled infested the area 1372 | -9/Mines | Assisted by a Guerilla fighting off Assembled 1482 | -9/Mines | Learned location of Zion (-7) 1495 | -9/Mines | Discovered new exit (range 6) 1528 | -9/Mines | Entered Materials 1528 | -8/Materials | Evolved 2 slots: Propulsion x1, Utility x1 1759 | -8/Materials | Lost 5 parts (1p4n) 2006 | -8/Materials | Lost 4 parts (1p1n1u1w) 2015 | -8/Materials | Core integrity fell below 50% 2747 | -8/Materials | Self-destructed Last Messages --------------- 02614_ K-01 Serf destroyed. 02620_ Flight Unit destroyed. 02623_ Y-45 Defender misfires. 02627_ Chain reaction triggered in Imp. Ion Engine. 02628_ Y-45 Defender system terminally corrupted. 02628_ Heat Sink fried. 02629_ Extracted 28 matter. 02632_ U-05 Engineer lays Concrete. 02644_ U-05 Engineer builds a Wall. 02645_ Acquired Lgt. Armor Plating. 02646_ U-05 Engineer builds a Door. 02648_ U-05 Engineer builds a Wall. 02650_ U-05 Engineer lays Concrete. 02665_ R-06 Scavenger collects Sml. Matter Pod. 02678_ Acquired Corrupted Hvy. Assault Rifle. 02717_ Datajack destroyed. 02739_ Aluminum Leg destroyed. 02747_ EM Pulse Cannon destroyed. Map ----- +----------------------------------------------------+ | ?????????# # ## """"" #??????????????? | | ?????????######## ## #??????????????? | | ????????????????# ## = ###########????? | | ????????????????# ## =] # #????? | | ????????????????# ##########+#### "" #????? | | ????????????????# ! # ""S """ #????? | | ????????????????# %! + "" """ #????? | | ????????????????# # """ #????? | | ????????????????## ####+######### #! #????? | | ?????????????????# ## #????# # #????? | | ?????????????????# ## #????# # #????? | | ?????????????????#/## #????#%### #######????? | | ????????????????? # #????# #??##??????????? | | ?????????????????"" # #???## ##?????????????? | | ?????????????????"T # #?####+######?????????? | | ???????????????? "" ########?# =% #?????????? | | ???????????????? ?????????# #?????????? | | ???????????????? ?????????# #?????????? | | ???????????????? ?? ?????????# #?????????? | | ???????????????????#?????????# #?????????? | | ????????????????????#######??# #?????????? | | ????????????????????# #??# #?????????? | | ????????????????????# "" #??# #?????????? | | ????????????????????# ""S #??#####+#####?????????? | | ????????????????????# "" ###### #######?????? | | ????????????????????# @# ! #???? | | ????????????????????# g / #???? | | ????????????????????# !!/ # g #???? | | ????????????????????# !/ # #### ##### #???? | | ????????????????????# !/ # #??# #####????? #???? | | ????????????????????# # #??# #???????????#???? | | ????????????????????# # #??# #???????????????? | | ????????????????????# Y # #??# #???????????????? | | ????????????????????## #### #??# #???????????????? | | ?????????????????????##???# #??# #???????????????? | | ??????????????????????????# #??# ????????????????? | | ??????????????????????????? ???T ????????????????? | | ???????????????????????????+???# ????????????????? | | ???????????????????????????????? ????????????????? | | ???????????????????????????????? ????????????????? | | ???????????????????????????????? ????????????????? | | ???????????????????????????????? ????????????????? | | ???????????????????????????????? ????????????????? | | ?????????????????????????????????????????????????? | | ?????????????????????????????????????????????????? | | ?????????????????????????????????????????????????? | | ?????????????????????????????????????????????????? | | ?????????????????????????????????????????????????? | | ?????????????????????????????????????????????????? | | ?????????????????????????????????????????????????? | +----------------------------------------------------+ Best States ------------- Heat Dissipation 31 Energy Generation 18 Energy Capacity 265 Matter Stores 300 Matter Capacity 300 Sight Range 18 Terrain Scan Density 10 Armor Coverage 225 Evasion (%) 55 Targeting Accuracy 5 Recoil Reduction 1 Item Schematics ----------------- None Robot Schematics ------------------ None Fabricated ------------ Nothing Alien Tech Used ----------------- None Achievements -------------- None Challenges ------------ None Game ------ Seed PointyCorruptionTerminator Manual? 0 Play Time 00:35:15 Cumulative 6.3 hours Start 2024.12.24 @ 15:22:13 End 2024.12.24 @ 17:58:45 Sessions 1 Manual Loads 0 Difficulty Rogue Special Mode None Game No. 10 Rogue 3 Adventurer 7 Explorer 0 Win Type - Total 0 Types 0/0/0/0/0/0/0/0/0 Lore% 4 Gallery% 14 Achievement% 11 Wizard Run 0 Options --------- Layout 1 ASCII 0 Keyboard 0 Movement Arrows Keybinds 0 Fullscreen 1 Font 24/Smallcaps Map View 50x35 Zoom Use 0% Tactical HUD 1 Map Filters NONE Filters NONE Steam 1 RUN: e8c72e71-1927-4439-8bad-244b8a6d8705